fUST/lending_fUST_20260601
["ID","MTS","AMOUNT","RATE_DAILY","PERIOD"]
[423613623,1780260642000,-500.0,0.00013972,2]
[423613659,1780260642000,-500.0,0.00013972,2]
[423613784,1780260643000,-500.0,0.00014246,2]
[423613777,1780260643000,-500.0,0.00013972,2]
[423613781,1780260643000,-500.0,0.00014245,2]
[423613782,1780260643000,-500.0,0.00014246,2]
[423613818,1780260643000,-500.0,0.00014246,2]
[423613776,1780260643000,-500.0,0.00013972,2]
[423613780,1780260643000,-500.0,0.00013972,2]
[423613778,1780260643000,-500.0,0.00013972,2]
[423613773,1780260643000,-622.62,0.00013972,2]
[423613775,1780260643000,-500.0,0.00013972,2]
[423613783,1780260643000,-500.0,0.00014246,2]
[423613779,1780260643000,-671.27,0.00013972,2]
[423613785,1780260643000,-500.0,0.00014246,2]
[423613808,1780260643000,-500.0,0.00014246,2]
[423613787,1780260643000,-500.0,0.00014246,2]
[423613786,1780260643000,-500.0,0.00014246,2]
[423613795,1780260643000,-500.0,0.00014246,2]
[423613796,1780260643000,-500.0,0.00014246,2]
[423613799,1780260643000,-500.0,0.00014246,2]
[423613800,1780260643000,-500.0,0.00014246,2]
[423613802,1780260643000,-500.0,0.00014246,2]
[423613804,1780260643000,-500.0,0.00014246,2]
[423613806,1780260643000,-500.0,0.00014246,2]
[423613810,1780260643000,-500.0,0.00014246,2]
[423613816,1780260643000,-1320.8469,0.00014246,2]
[423613774,1780260643000,-739.95,0.00013972,2]
[423613788,1780260643000,-500.0,0.00014246,2]
[423613771,1780260643000,-500.0,0.00013972,2]
[423613723,1780260643000,-2304.8,0.00013972,2]
[423613758,1780260643000,-500.0,0.00013972,2]
[423613718,1780260643000,-500.0,0.00013972,2]
[423613716,1780260643000,-766.88,0.00013972,2]
[423613714,1780260643000,-714.55,0.00013972,2]
[423613719,1780260643000,-500.0,0.00013972,2]
[423613721,1780260643000,-500.0,0.00013972,2]
[423613725,1780260643000,-593.57,0.00013972,2]
[423613742,1780260643000,-500.0,0.00013972,2]
[423613736,1780260643000,-500.0,0.00013972,2]
[423613738,1780260643000,-1631.26,0.00013972,2]
[423613740,1780260643000,-500.0,0.00013972,2]
[423613728,1780260643000,-500.0,0.00013972,2]
[423613727,1780260643000,-1583.2,0.00013972,2]
[423613730,1780260643000,-500.0,0.00013972,2]
[423613734,1780260643000,-578.64,0.00013972,2]
[423613732,1780260643000,-500.0,0.00013972,2]
[423613744,1780260643000,-500.0,0.00013972,2]
[423613746,1780260643000,-771.98,0.00013972,2]
[423613747,1780260643000,-2157.38,0.00013972,2]
[423613750,1780260643000,-500.0,0.00013972,2]
[423613752,1780260643000,-500.0,0.00013972,2]
[423613762,1780260643000,-500.0,0.00013972,2]
[423613764,1780260643000,-521.76,0.00013972,2]
[423613754,1780260643000,-500.0,0.00013972,2]
[423613766,1780260643000,-12195.85,0.00013972,2]
[423613768,1780260643000,-1047.91,0.00013972,2]
[423613769,1780260643000,-2698.28,0.00013972,2]
[423613756,1780260643000,-500.0,0.00013972,2]
[423613760,1780260643000,-500.0,0.00013972,2]
[423613820,1780260643000,-500.0,0.00014246,2]
[423613861,1780260643000,-500.0,0.00014246,2]
[423613814,1780260643000,-500.0,0.00014246,2]
[423613876,1780260643000,-500.0,0.00014246,2]
[423613882,1780260643000,-500.0,0.00014246,2]
[423613886,1780260643000,-500.0,0.00014246,2]
[423613891,1780260643000,-500.0,0.00014246,2]
[423613893,1780260643000,-500.0,0.00014246,2]
[423613895,1780260643000,-500.0,0.00014246,2]
[423613897,1780260643000,-500.0,0.00014246,2]
[423613898,1780260643000,-500.0,0.00014246,2]
[423613913,1780260643000,-500.0,0.00014246,2]
[423613917,1780260643000,-500.0,0.00014246,2]
[423613911,1780260643000,-500.0,0.00014246,2]
[423613915,1780260643000,-500.0,0.00014246,2]
[423613900,1780260643000,-500.0,0.00014246,2]
[423613906,1780260643000,-500.0,0.00014246,2]
[423613902,1780260643000,-500.0,0.00014246,2]
[423613910,1780260643000,-500.0,0.00014246,2]
[423613904,1780260643000,-680.05,0.00014246,2]
[423613908,1780260643000,-500.0,0.00014246,2]
[423613919,1780260643000,-500.0,0.00014246,2]
[423613925,1780260643000,-500.0,0.00014246,2]
[423613923,1780260643000,-500.0,0.00014246,2]
[423613921,1780260643000,-500.0,0.00014246,2]
[423613927,1780260643000,-652.94,0.00014246,2]
[423613931,1780260643000,-500.0,0.00014246,2]
[423613929,1780260643000,-881.34,0.00014246,2]
[423613933,1780260643000,-1898.52,0.00014246,2]
[423613812,1780260643000,-500.0,0.00014246,2]
[423613880,1780260643000,-500.0,0.00014246,2]
[423613889,1780260643000,-500.0,0.00014246,2]
[423613869,1780260643000,-500.0,0.00014246,2]
[423613887,1780260643000,-500.0,0.00014246,2]
[423613825,1780260643000,-500.0,0.00014246,2]
[423613840,1780260643000,-500.0,0.00014246,2]
[423613838,1780260643000,-500.0,0.00014246,2]
[423613842,1780260643000,-500.0,0.00014246,2]
[423613827,1780260643000,-500.0,0.00014246,2]
[423613829,1780260643000,-500.0,0.00014246,2]
[423613836,1780260643000,-589.67682115,0.00014246,2]
[423613834,1780260643000,-500.0,0.00014246,2]
[423613844,1780260643000,-506.99315561,0.00014246,2]
[423613846,1780260643000,-500.0,0.00014246,2]
[423613848,1780260643000,-500.0,0.00014246,2]
[423613850,1780260643000,-500.0,0.00014246,2]
[423613832,1780260643000,-500.0,0.00014246,2]
[423613854,1780260643000,-500.0,0.00014246,2]
[423613856,1780260643000,-500.0,0.00014246,2]
[423613884,1780260643000,-500.0,0.00014246,2]
[423613874,1780260643000,-500.0,0.00014246,2]
[423613873,1780260643000,-500.0,0.00014246,2]
[423613871,1780260643000,-500.0,0.00014246,2]
[423613878,1780260643000,-500.0,0.00014246,2]
[423613821,1780260643000,-500.0,0.00014246,2]
[423613865,1780260643000,-500.0,0.00014246,2]
[423613852,1780260643000,-500.0,0.00014246,2]
[423613859,1780260643000,-500.0,0.00014246,2]
[423613863,1780260643000,-500.0,0.00014246,2]
[423613858,1780260643000,-500.0,0.00014246,2]
[423613867,1780260643000,-500.0,0.00014246,2]
[423614023,1780260644000,-183.10830891,0.0001452,2]
[423614021,1780260644000,-500.0,0.0001452,2]
[423614019,1780260644000,-500.0,0.0001452,2]
[423614017,1780260644000,-500.0,0.0001452,2]
[423614007,1780260644000,-500.0,0.00014246,2]
[423614011,1780260644000,-671.27,0.00014246,2]
[423614001,1780260644000,-739.95,0.00014246,2]
[423614005,1780260644000,-500.0,0.00014246,2]
[423614015,1780260644000,-500.0,0.00014519,2]
[423614003,1780260644000,-500.0,0.00014246,2]
[423614013,1780260644000,-500.0,0.00014246,2]
[423614000,1780260644000,-622.62,0.00014246,2]
[423614009,1780260644000,-500.0,0.00014246,2]
[423613998,1780260644000,-500.0,0.00014246,2]
[423614050,1780260644000,-500.0,0.0001452,2]
[423614025,1780260644000,-500.0,0.0001452,2]
[423614037,1780260644000,-500.0,0.0001452,2]
[423614035,1780260644000,-500.0,0.0001452,2]
[423614033,1780260644000,-500.0,0.0001452,2]
[423614039,1780260644000,-500.0,0.0001452,2]
[423614029,1780260644000,-500.0,0.0001452,2]
[423614027,1780260644000,-500.0,0.0001452,2]
[423614031,1780260644000,-500.0,0.0001452,2]
[423614046,1780260644000,-500.0,0.0001452,2]
[423614044,1780260644000,-500.0,0.0001452,2]
[423614048,1780260644000,-500.0,0.0001452,2]
[423613996,1780260644000,-2698.28,0.00014246,2]
[423614052,1780260644000,-500.0,0.0001452,2]
[423614041,1780260644000,-500.0,0.0001452,2]
[423613994,1780260644000,-1047.91,0.00014246,2]
[423613959,1780260644000,-578.64,0.00014246,2]
[423613984,1780260644000,-255.20466953,0.00014246,2]
[423613940,1780260644000,-766.88,0.00014246,2]
[423613938,1780260644000,-714.55,0.00014246,2]
[423613942,1780260644000,-500.0,0.00014246,2]
[423613934,1780260644000,-500.0,0.00014246,2]
[423613936,1780260644000,-500.0,0.00014246,2]
[423613946,1780260644000,-500.0,0.00014246,2]
[423613948,1780260644000,-2304.8,0.00014246,2]
[423613950,1780260644000,-593.57,0.00014246,2]
[423613944,1780260644000,-500.0,0.00014246,2]
[423613958,1780260644000,-500.0,0.00014246,2]
[423613965,1780260644000,-500.0,0.00014246,2]
[423613963,1780260644000,-500.0,0.00014246,2]
[423613954,1780260644000,-500.0,0.00014246,2]
[423613980,1780260644000,-500.34368594,0.00014246,2]
[423613967,1780260644000,-500.0,0.00014246,2]
[423613956,1780260644000,-500.0,0.00014246,2]
[423614061,1780260644000,-500.0,0.0001452,2]
[423613969,1780260644000,-500.0,0.00014246,2]
[423613971,1780260644000,-771.98,0.00014246,2]
[423613973,1780260644000,-2157.38,0.00014246,2]
[423613975,1780260644000,-500.0,0.00014246,2]
[423613977,1780260644000,-500.0,0.00014246,2]
[423613988,1780260644000,-500.0,0.00014246,2]
[423613992,1780260644000,-12195.85,0.00014246,2]
[423613990,1780260644000,-521.76,0.00014246,2]
[423613978,1780260644000,-500.0,0.00014246,2]
[423613982,1780260644000,-500.0,0.00014246,2]
[423613986,1780260644000,-500.0,0.00014246,2]
[423613952,1780260644000,-1583.2,0.00014246,2]
[423614054,1780260644000,-500.0,0.0001452,2]
[423613961,1780260644000,-1631.26,0.00014246,2]
[423614057,1780260644000,-500.0,0.0001452,2]
[423614132,1780260644000,-500.0,0.0001452,2]
[423614133,1780260644000,-500.0,0.0001452,2]
[423614130,1780260644000,-500.0,0.0001452,2]
[423614137,1780260644000,-500.0,0.0001452,2]
[423614126,1780260644000,-500.0,0.0001452,2]
[423614135,1780260644000,-500.0,0.0001452,2]
[423614139,1780260644000,-500.0,0.0001452,2]
[423614141,1780260644000,-500.0,0.0001452,2]
[423614142,1780260644000,-489.33536471,0.0001452,2]
[423614146,1780260644000,-652.94,0.0001452,2]
[423614144,1780260644000,-500.0,0.0001452,2]
[423614158,1780260644000,-766.88,0.0001452,2]
[423614148,1780260644000,-881.34,0.0001452,2]
[423614124,1780260644000,-680.05,0.0001452,2]
[423614153,1780260644000,-500.0,0.0001452,2]
[423614162,1780260644000,-500.0,0.0001452,2]
[423614164,1780260644000,-500.0,0.0001452,2]
[423614160,1780260644000,-500.0,0.0001452,2]
[423614151,1780260644000,-1898.52,0.0001452,2]
[423614155,1780260644000,-500.0,0.0001452,2]
[423614157,1780260644000,-714.55,0.0001452,2]
[423614166,1780260644000,-2304.8,0.0001452,2]
[423614170,1780260644000,-1583.2,0.0001452,2]
[423614168,1780260644000,-593.57,0.0001452,2]
[423614172,1780260644000,-500.0,0.0001452,2]
[423614173,1780260644000,-500.0,0.0001452,2]
[423614177,1780260644000,-578.64,0.0001452,2]
[423614064,1780260644000,-500.0,0.0001452,2]
[423614150,1780260644000,-500.0,0.0001452,2]
[423614122,1780260644000,-500.0,0.0001452,2]
[423614175,1780260644000,-500.0,0.0001452,2]
[423614115,1780260644000,-479.18342755,0.0001452,2]
[423614065,1780260644000,-500.0,0.0001452,2]
[423614056,1780260644000,-500.0,0.0001452,2]
[423614059,1780260644000,-500.0,0.0001452,2]
[423614067,1780260644000,-500.0,0.0001452,2]
[423614071,1780260644000,-500.0,0.0001452,2]
[423614070,1780260644000,-500.0,0.0001452,2]
[423614074,1780260644000,-500.0,0.0001452,2]
[423614088,1780260644000,-500.0,0.0001452,2]
[423614128,1780260644000,-500.0,0.0001452,2]
[423614076,1780260644000,-500.0,0.0001452,2]
[423614080,1780260644000,-500.0,0.0001452,2]
[423614084,1780260644000,-500.0,0.0001452,2]
[423614082,1780260644000,-500.0,0.0001452,2]
[423614089,1780260644000,-1301.1175,0.0001452,2]
[423614086,1780260644000,-500.0,0.0001452,2]
[423614094,1780260644000,-500.0,0.0001452,2]
[423614117,1780260644000,-500.0,0.0001452,2]
[423614092,1780260644000,-500.0,0.0001452,2]
[423614121,1780260644000,-500.0,0.0001452,2]
[423614113,1780260644000,-500.0,0.0001452,2]
[423614109,1780260644000,-500.0,0.0001452,2]
[423614111,1780260644000,-500.0,0.0001452,2]
[423614119,1780260644000,-500.0,0.0001452,2]
[423614103,1780260644000,-500.0,0.0001452,2]
[423614107,1780260644000,-500.0,0.0001452,2]
[423614101,1780260644000,-500.0,0.0001452,2]
[423614099,1780260644000,-500.0,0.0001452,2]
[423614097,1780260644000,-500.0,0.0001452,2]
[423614095,1780260644000,-500.0,0.0001452,2]
[423614105,1780260644000,-500.0,0.0001452,2]
[423614279,1780260645000,-500.0,0.00014794,2]
[423614263,1780260645000,-500.0,0.00014794,2]
[423614280,1780260645000,-500.0,0.00014794,2]
[423614272,1780260645000,-500.0,0.00014794,2]
[423614259,1780260645000,-500.0,0.00014794,2]
[423614257,1780260645000,-500.0,0.00014794,2]
[423614246,1780260645000,-500.0,0.00014793,2]
[423614248,1780260645000,-500.0,0.00014794,2]
[423614244,1780260645000,-543.688524,0.00014742,2]
[423614242,1780260645000,-370.58377438,0.00014626,2]
[423614261,1780260645000,-500.0,0.00014794,2]
[423614268,1780260645000,-500.0,0.00014794,2]
[423614292,1780260645000,-500.0,0.00014794,2]
[423614271,1780260645000,-500.0,0.00014794,2]
[423614267,1780260645000,-500.0,0.00014794,2]
[423614275,1780260645000,-500.0,0.00014794,2]
[423614276,1780260645000,-500.0,0.00014794,2]
[423614282,1780260645000,-500.0,0.00014794,2]
[423614285,1780260645000,-500.0,0.00014794,2]
[423614287,1780260645000,-500.0,0.00014794,2]
[423614289,1780260645000,-500.0,0.00014794,2]
[423614300,1780260645000,-500.0,0.00014794,2]
[423614302,1780260645000,-500.0,0.00014794,2]
[423614306,1780260645000,-500.0,0.00014794,2]
[423614253,1780260645000,-500.0,0.00014794,2]
[423614265,1780260645000,-389.71106707,0.00014794,2]
[423614251,1780260645000,-500.0,0.00014794,2]
[423614216,1780260645000,-500.0,0.0001452,2]
[423614238,1780260645000,-350.12253015,0.00014614,2]
[423614290,1780260645000,-500.0,0.00014794,2]
[423614179,1780260645000,-1631.26,0.0001452,2]
[423614183,1780260645000,-500.0,0.0001452,2]
[423614181,1780260645000,-500.0,0.0001452,2]
[423614185,1780260645000,-500.0,0.0001452,2]
[423614187,1780260645000,-500.0,0.0001452,2]
[423614190,1780260645000,-2157.38,0.0001452,2]
[423614188,1780260645000,-771.98,0.0001452,2]
[423614192,1780260645000,-500.0,0.0001452,2]
[423614194,1780260645000,-500.0,0.0001452,2]
[423614198,1780260645000,-500.0,0.0001452,2]
[423614196,1780260645000,-500.0,0.0001452,2]
[423614210,1780260645000,-500.0,0.0001452,2]
[423614200,1780260645000,-500.0,0.0001452,2]
[423614212,1780260645000,-622.62,0.0001452,2]
[423614214,1780260645000,-739.95,0.0001452,2]
[423614201,1780260645000,-500.0,0.0001452,2]
[423614205,1780260645000,-12195.85,0.0001452,2]
[423614208,1780260645000,-2698.28,0.0001452,2]
[423614203,1780260645000,-521.76,0.0001452,2]
[423614207,1780260645000,-1047.91,0.0001452,2]
[423614217,1780260645000,-500.0,0.0001452,2]
[423614221,1780260645000,-329.36708501,0.0001452,2]
[423614219,1780260645000,-500.0,0.0001452,2]
[423614225,1780260645000,-500.0,0.0001452,2]
[423614223,1780260645000,-671.27,0.0001452,2]
[423614240,1780260645000,-204.35785192,0.00014626,2]
[423614255,1780260645000,-500.0,0.00014794,2]
[423614296,1780260645000,-500.0,0.00014794,2]
[423614329,1780260645000,-500.0,0.00014794,2]
[423614298,1780260645000,-500.0,0.00014794,2]
[423614384,1780260645000,-1583.2,0.00014794,2]
[423614385,1780260645000,-500.0,0.00014794,2]
[423614382,1780260645000,-593.57,0.00014794,2]
[423614380,1780260645000,-2304.8,0.00014794,2]
[423614366,1780260645000,-500.0,0.00014794,2]
[423614376,1780260645000,-472.2901417,0.00014794,2]
[423614368,1780260645000,-500.0,0.00014794,2]
[423614374,1780260645000,-500.0,0.00014794,2]
[423614372,1780260645000,-766.88,0.00014794,2]
[423614370,1780260645000,-714.55,0.00014794,2]
[423614391,1780260645000,-578.64,0.00014794,2]
[423614389,1780260645000,-500.0,0.00014794,2]
[423614378,1780260645000,-500.0,0.00014794,2]
[423614387,1780260645000,-500.0,0.00014794,2]
[423614395,1780260645000,-500.0,0.00014794,2]
[423614402,1780260645000,-771.98,0.00014794,2]
[423614304,1780260645000,-500.0,0.00014794,2]
[423614398,1780260645000,-500.0,0.00014794,2]
[423614400,1780260645000,-500.0,0.00014794,2]
[423614410,1780260645000,-500.0,0.00014794,2]
[423614406,1780260645000,-500.0,0.00014794,2]
[423614404,1780260645000,-2157.38,0.00014794,2]
[423614408,1780260645000,-500.0,0.00014794,2]
[423614412,1780260645000,-500.0,0.00014794,2]
[423614413,1780260645000,-500.0,0.00014794,2]
[423614417,1780260645000,-521.76,0.00014794,2]
[423614396,1780260645000,-500.0,0.00014794,2]
[423614364,1780260645000,-1898.52,0.00014794,2]
[423614393,1780260645000,-1631.26,0.00014794,2]
[423614349,1780260645000,-500.0,0.00014794,2]
[423614362,1780260645000,-500.0,0.00014794,2]
[423614294,1780260645000,-500.0,0.00014794,2]
[423614308,1780260645000,-500.0,0.00014794,2]
[423614310,1780260645000,-1301.1175,0.00014794,2]
[423614312,1780260645000,-500.0,0.00014794,2]
[423614314,1780260645000,-500.0,0.00014794,2]
[423614316,1780260645000,-500.0,0.00014794,2]
[423614318,1780260645000,-500.0,0.00014794,2]
[423614324,1780260645000,-500.0,0.00014794,2]
[423614320,1780260645000,-500.0,0.00014794,2]
[423614328,1780260645000,-500.0,0.00014794,2]
[423614322,1780260645000,-500.0,0.00014794,2]
[423614326,1780260645000,-500.0,0.00014794,2]
[423614415,1780260645000,-500.0,0.00014794,2]
[423614335,1780260645000,-500.0,0.00014794,2]
[423614345,1780260645000,-500.0,0.00014794,2]
[423614331,1780260645000,-546.57119145,0.00014794,2]
[423614347,1780260645000,-500.0,0.00014794,2]
[423614360,1780260645000,-881.34,0.00014794,2]
[423614358,1780260645000,-652.94,0.00014794,2]
[423614353,1780260645000,-500.0,0.00014794,2]
[423614343,1780260645000,-548.64,0.00014794,2]
[423614356,1780260645000,-172.357,0.00014794,2]
[423614341,1780260645000,-500.0,0.00014794,2]
[423614339,1780260645000,-500.0,0.00014794,2]
[423614333,1780260645000,-500.0,0.00014794,2]
[423614337,1780260645000,-680.05,0.00014794,2]
[423614350,1780260645000,-500.0,0.00014794,2]
[423614438,1780260646000,-500.0,0.00014794,2]
[423614445,1780260646000,-14290.86491744,0.0001492,2]
[423614447,1780260646000,-1000.0,0.00014932,2]
[423614443,1780260646000,-540.1758332,0.00014816,2]
[423614439,1780260646000,-10419.6073749,0.00014812,2]
[423614436,1780260646000,-671.27,0.00014794,2]
[423614425,1780260646000,-500.0,0.00014794,2]
[423614419,1780260646000,-12195.85,0.00014794,2]
[423614421,1780260646000,-1047.91,0.00014794,2]
[423614423,1780260646000,-2698.28,0.00014794,2]
[423614427,1780260646000,-622.62,0.00014794,2]
[423614453,1780260646000,-7040.37866172,0.00014967,2]
[423614434,1780260646000,-500.0,0.00014794,2]
[423614432,1780260646000,-500.0,0.00014794,2]
[423614428,1780260646000,-739.95,0.00014794,2]
[423614430,1780260646000,-500.0,0.00014794,2]
[423614451,1780260646000,-9649.6654484,0.00014946,2]
[423614487,1780260646000,-443.71,0.00013698,2]
[423614455,1780260646000,-714982.55640631,0.00015,2]
[423614499,1780260646000,-1188.92,0.0001452,2]
[423614495,1780260646000,-1188.92,0.00014246,2]
[423614497,1780260646000,-500.0,0.00014246,2]
[423614500,1780260646000,-500.0,0.0001452,2]
[423614506,1780260646000,-119439.45708672,0.00015,2]
[423614491,1780260646000,-1188.92,0.00013972,2]
[423614441,1780260646000,-3170.8281637,0.00014816,2]
[423614502,1780260646000,-1188.92,0.00014794,2]
[423614485,1780260646000,-1188.92,0.00013698,2]
[423614489,1780260646000,-56.29,0.00013698,2]
[423614463,1780260646000,-5514.31215015,0.00015,2]
[423614458,1780260646000,-51510.67439688,0.00015,2]
[423614461,1780260646000,-644277.50746972,0.00015,2]
[423614449,1780260646000,-244.0,0.00014932,2]
[423614504,1780260646000,-500.0,0.00014794,2]
[423614493,1780260646000,-500.0,0.00013972,2]
[423615453,1780260654000,500.0,9.999e-05,2]
[423617521,1780261336000,-415.00293524,8.821e-05,2]
[423617522,1780261389000,-151.0,8.556e-05,2]
[423617524,1780261442000,-300.0,8.82e-05,2]
[423617525,1780261495000,-500.0,8.821e-05,2]
[423617526,1780261506000,-500.0,8.821e-05,2]
[423617527,1780261517000,-500.0,8.821e-05,2]
[423617528,1780261528000,-500.0,8.821e-05,2]
[423617529,1780261540000,-500.0,8.821e-05,2]
[423617533,1780261631000,-234.41337128,8.821e-05,2]
[423617534,1780261648000,-500.0,8.821e-05,2]
[423617535,1780261658000,-500.0,8.821e-05,2]
[423617537,1780261669000,-500.0,8.821e-05,2]
[423617538,1780261680000,-500.0,8.821e-05,2]
[423617539,1780261692000,-500.0,8.821e-05,2]
[423617540,1780261703000,-500.0,8.821e-05,2]
[423617541,1780261713000,-500.0,8.821e-05,2]
[423617542,1780261724000,-500.0,8.821e-05,2]
[423617543,1780261735000,-500.0,8.821e-05,2]
[423617544,1780261747000,-500.0,8.821e-05,2]
[423617560,1780261768000,-500.0,8.995e-05,2]
[423617558,1780261768000,-500.0,8.995e-05,2]
[423617559,1780261768000,-500.0,8.995e-05,2]
[423617556,1780261768000,-500.0,8.995e-05,2]
[423617557,1780261768000,-500.0,8.995e-05,2]
[423617555,1780261768000,-500.0,8.995e-05,2]
[423617554,1780261768000,-500.0,8.995e-05,2]
[423617549,1780261768000,-500.0,8.995e-05,2]
[423617552,1780261768000,-500.0,8.995e-05,2]
[423617550,1780261768000,-500.0,8.995e-05,2]
[423617562,1780261768000,-500.0,8.995e-05,2]
[423617548,1780261768000,-500.0,8.995e-05,2]
[423617547,1780261768000,-500.0,8.995e-05,2]
[423617546,1780261768000,-3433.63482018,8.821e-05,2]
[423617545,1780261768000,-2500.0,8.821e-05,2]
[423617551,1780261768000,-500.0,8.995e-05,2]
[423617561,1780261768000,-500.0,8.995e-05,2]
[423617553,1780261768000,-500.0,8.995e-05,2]
[423617565,1780261768000,-500.0,8.995e-05,2]
[423617563,1780261768000,-500.0,8.995e-05,2]
[423617581,1780261768000,-11242.16226573,9e-05,2]
[423617579,1780261768000,-500.0,8.995e-05,2]
[423617580,1780261768000,-200.0,8.995e-05,2]
[423617577,1780261768000,-500.0,8.995e-05,2]
[423617576,1780261768000,-500.0,8.995e-05,2]
[423617575,1780261768000,-500.0,8.995e-05,2]
[423617574,1780261768000,-500.0,8.995e-05,2]
[423617572,1780261768000,-500.0,8.995e-05,2]
[423617578,1780261768000,-500.0,8.995e-05,2]
[423617573,1780261768000,-500.0,8.995e-05,2]
[423617571,1780261768000,-500.0,8.995e-05,2]
[423617569,1780261768000,-500.0,8.995e-05,2]
[423617570,1780261768000,-500.0,8.995e-05,2]
[423617567,1780261768000,-500.0,8.995e-05,2]
[423617568,1780261768000,-500.0,8.995e-05,2]
[423617566,1780261768000,-500.0,8.995e-05,2]
[423617564,1780261768000,-223.34850531,8.995e-05,2]
[423617622,1780261832000,-727.64854709,0.00013155,2]
[423617623,1780261832000,-585.00873823,0.00013155,2]
[423617616,1780261832000,-8702.5674228,0.00011126,2]
[423617618,1780261832000,-250.0,0.00011791,2]
[423617624,1780261832000,-231.81065227,0.00013598,2]
[423617617,1780261832000,-864.0,0.00011327,2]
[423617607,1780261832000,-300.0,9.179e-05,2]
[423617614,1780261832000,-1051.0,0.00010672,2]
[423617615,1780261832000,-156.55388624,0.00011026,2]
[423617613,1780261832000,-1785.43760562,0.00010517,2]
[423617620,1780261832000,-1000.0,0.0001246,2]
[423617635,1780261832000,-500.0,0.00013698,2]
[423617621,1780261832000,-697.8565472,0.00012818,2]
[423617625,1780261832000,-1698.78343567,0.00013601,2]
[423617627,1780261832000,-500.0,0.00013698,2]
[423617626,1780261832000,-1451.4251,0.00013698,2]
[423617636,1780261832000,-500.0,0.00013698,2]
[423617628,1780261832000,-500.0,0.00013698,2]
[423617629,1780261832000,-500.0,0.00013698,2]
[423617634,1780261832000,-500.0,0.00013698,2]
[423617632,1780261832000,-500.0,0.00013698,2]
[423617630,1780261832000,-500.0,0.00013698,2]
[423617609,1780261832000,-600.0,9.362e-05,2]
[423617619,1780261832000,-181.91213677,0.00011806,2]
[423617610,1780261832000,-337.0,9.702e-05,2]
[423617588,1780261832000,-1200.0,8.82e-05,2]
[423617603,1780261832000,-300.0,9.179e-05,2]
[423617586,1780261832000,-298.6213911,8.82e-05,2]
[423617585,1780261832000,-300.0,8.82e-05,2]
[423617587,1780261832000,-1.3786089,8.82e-05,2]
[423617631,1780261832000,-500.0,0.00013698,2]
[423617593,1780261832000,-17844.79773427,9e-05,2]
[423617590,1780261832000,-5000.0,8.821e-05,2]
[423617589,1780261832000,-300.0,8.82e-05,2]
[423617592,1780261832000,-697.8565472,8.943e-05,2]
[423617594,1780261832000,-300.0,9.179e-05,2]
[423617591,1780261832000,-2265.58662872,8.821e-05,2]
[423617595,1780261832000,-300.0,9.179e-05,2]
[423617597,1780261832000,-300.0,9.179e-05,2]
[423617596,1780261832000,-300.0,9.179e-05,2]
[423617598,1780261832000,-300.0,9.179e-05,2]
[423617599,1780261832000,-300.0,9.179e-05,2]
[423617612,1780261832000,-720.0,0.00010298,2]